[Event "IV Pullman Blitz 2022"]
[Site "Riga, Latvia"]
[Date "2022.02.20"]
[Round "12.3"]
[White "Berzinsh, Roland"]
[Black "Batashevs, Arsens"]
[Result "0-1"]
[TimeControl "180+2"]
[WhiteTitle "IM"]
[WhiteElo "2285"]
[BlackElo "2113"]

1. e4 {[%clk 00:03:02]} {[%emt 00:00:01]} g6 {[%clk 00:03:04]} 2. d4 {[%clk
00:03:03]} Bg7 {[%clk 00:03:05]} 3. Nc3 {[%clk 00:03:04]} {[%emt 00:00:02]} c5
{[%clk 00:03:06]} 4. dxc5 {[%clk 00:03:02]} {[%emt 00:00:06]} Bxc3+ {[%clk
00:03:07]} 5. bxc3 {[%clk 00:03:02]} Qa5 {[%clk 00:03:09]} 6. Qd4 {[%clk
00:02:54]} {[%emt 00:00:11]} Nf6 {[%clk 00:03:10]} 7. Qb4 {[%clk 00:02:29]}
{[%emt 00:00:27]} Qc7 {[%clk 00:03:06]} {[%emt 00:00:07]} 8. Bd3 {[%clk
00:02:25]} {[%emt 00:00:05]} Nc6 {[%clk 00:03:06]} {[%emt 00:00:03]} 9. Qa4
{[%clk 00:02:22]} {[%emt 00:00:04]} Qe5 {[%clk 00:02:46]} {[%emt 00:00:22]} 10.
Bd2 {[%clk 00:02:14]} {[%emt 00:00:10]} Qxc5 {[%clk 00:02:43]} {[%emt
00:00:05]} 11. Nf3 {[%clk 00:02:10]} {[%emt 00:00:05]} d6 {[%clk 00:02:38]}
{[%emt 00:00:08]} 12. Nd4 {[%clk 00:02:06]} {[%emt 00:00:06]} Bd7 {[%clk
00:02:27]} {[%emt 00:00:14]} 13. Qb3 {[%clk 00:01:35]} {[%emt 00:00:32]} Nxd4
{[%clk 00:01:37]} {[%emt 00:00:52]} 14. cxd4 {[%clk 00:01:36]} {[%emt
00:00:01]} Qxd4 {[%clk 00:01:37]} {[%emt 00:00:02]} 15. Bc3 {[%clk 00:01:38]}
Qb6 {[%clk 00:01:30]} {[%emt 00:00:09]} 16. Qxb6 {[%clk 00:01:28]} {[%emt
00:00:12]} axb6 {[%clk 00:01:32]} 17. O-O {[%clk 00:01:26]} {[%emt 00:00:03]}
Bc6 {[%clk 00:01:27]} {[%emt 00:00:07]} 18. f3 {[%clk 00:01:21]} {[%emt
00:00:07]} Kd7 {[%clk 00:00:54]} {[%emt 00:00:35]} 19. Rfb1 {[%clk 00:01:21]}
{[%emt 00:00:01]} Ra7 {[%clk 00:00:47]} {[%emt 00:00:10]} 20. Rxb6 {[%clk
00:01:18]} {[%emt 00:00:06]} Rha8 {[%clk 00:00:47]} 21. Rb2 {[%clk 00:01:09]}
{[%emt 00:00:10]} Ne8 {[%clk 00:00:35]} {[%emt 00:00:15]} 22. Kf2 {[%clk
00:01:09]} {[%emt 00:00:02]} Nc7 {[%clk 00:00:36]} {[%emt 00:00:01]} 23. Bd4
{[%clk 00:01:07]} {[%emt 00:00:03]} Ra3 {[%clk 00:00:30]} {[%emt 00:00:08]} 24.
Bb6 {[%clk 00:01:06]} {[%emt 00:00:03]} Ne6 {[%clk 00:00:28]} {[%emt 00:00:05]}
25. Be3 {[%clk 00:01:02]} {[%emt 00:00:06]} Nc5 {[%clk 00:00:25]} {[%emt
00:00:05]} 26. Bc4 {[%clk 00:00:54]} {[%emt 00:00:10]} f6 {[%clk 00:00:08]}
{[%emt 00:00:20]} 27. Rd1 {[%clk 00:00:52]} {[%emt 00:00:04]} Kc7 {[%clk
00:00:09]} 28. h4 {[%clk 00:00:40]} {[%emt 00:00:13]} b5 {[%clk 00:00:04]}
{[%emt 00:00:08]} 29. Bxb5 {[%emt 00:00:08]} Rb8 30. c4 {[%clk 00:00:35]} Na4
{[%clk 00:00:03]} {[%emt 00:00:04]} 31. Rb4 {[%clk 00:00:29]} {[%emt 00:00:08]}
Nc3 {[%clk 00:00:04]} {[%emt 00:00:02]} 32. Rd2 {[%clk 00:00:26]} {[%emt
00:00:05]} Nxa2 {[%clk 00:00:04]} {[%emt 00:00:03]} 33. Rbb2 {[%clk 00:00:20]}
{[%emt 00:00:07]} Nc3 {[%clk 00:00:05]} {[%emt 00:00:01]} 34. Rdc2 {[%clk
00:00:18]} {[%emt 00:00:04]} Nd1+ {[%clk 00:00:06]} 35. Ke2 {[%clk 00:00:16]}
{[%emt 00:00:04]} Nxe3 {[%clk 00:00:06]} {[%emt 00:00:01]} 36. Rd2 {[%clk
00:00:14]} {[%emt 00:00:05]} Nxg2 {[%clk 00:00:05]} {[%emt 00:00:04]} 0-1

[Event "IV Pullman Blitz 2022"]
[Site "Riga, Latvia"]
[Date "2022.02.20"]
[Round "13.3"]
[White "Berzinsh, Roland"]
[Black "Batashevs, Arsens"]
[Result "1/2-1/2"]
[TimeControl "180+2"]
[WhiteTitle "IM"]
[WhiteElo "2285"]
[BlackElo "2113"]

1. e4 {[%clk 00:04:58]} g6 {[%clk 00:04:00]} 2. d4 {[%clk 00:04:57]} {[%emt
00:00:02]} Bg7 {[%clk 00:03:59]} 3. Nc3 {[%clk 00:04:57]} c5 {[%clk 00:03:58]}
4. dxc5 {[%clk 00:04:54]} {[%emt 00:00:04]} Bxc3+ {[%clk 00:03:57]} {[%emt
00:00:01]} 5. bxc3 {[%clk 00:04:53]} {[%emt 00:00:01]} Qa5 {[%clk 00:03:57]} 6.
Bd3 {[%clk 00:04:44]} {[%emt 00:00:08]} Nc6 {[%clk 00:03:51]} {[%emt 00:00:06]}
7. Nf3 {[%clk 00:04:39]} {[%emt 00:00:05]} Qxc3+ {[%clk 00:03:44]} {[%emt
00:00:07]} 8. Bd2 {[%clk 00:04:39]} {[%emt 00:00:01]} Qxc5 {[%clk 00:03:43]}
{[%emt 00:00:01]} 9. O-O {[%clk 00:04:30]} {[%emt 00:00:08]} d6 {[%clk
00:03:42]} {[%emt 00:00:01]} 10. Be3 {[%clk 00:04:19]} {[%emt 00:00:11]} Qa5
{[%clk 00:03:38]} {[%emt 00:00:04]} 11. Nd4 {[%clk 00:04:12]} {[%emt 00:00:06]}
Nf6 {[%clk 00:03:32]} {[%emt 00:00:06]} 12. h3 {[%clk 00:04:02]} {[%emt
00:00:09]} O-O {[%emt 00:00:18]} 13. Nb3 Qc7 {[%clk 00:03:07]} {[%emt
00:00:07]} 14. f4 {[%clk 00:03:58]} {[%emt 00:00:04]} b6 {[%clk 00:02:42]}
{[%emt 00:00:25]} 15. c4 {[%clk 00:03:44]} {[%emt 00:00:14]} Bb7 {[%clk
00:02:42]} 16. Rc1 {[%clk 00:03:43]} Nb4 {[%clk 00:02:41]} {[%emt 00:00:01]} 17.
e5 {[%clk 00:03:34]} {[%emt 00:00:10]} Nxd3 {[%clk 00:02:35]} {[%emt 00:00:06]}
18. Qxd3 {[%clk 00:03:25]} {[%emt 00:00:08]} dxe5 {[%clk 00:02:28]} {[%emt
00:00:07]} 19. c5 {[%clk 00:03:21]} {[%emt 00:00:03]} Rad8 {[%clk 00:02:23]}
{[%emt 00:00:06]} 20. cxb6 {[%clk 00:03:09]} {[%emt 00:00:12]} Qxc1 {[%clk
00:02:17]} {[%emt 00:00:06]} 21. Nxc1 {[%clk 00:03:07]} {[%emt 00:00:02]} Rxd3
{[%clk 00:02:16]} 22. Nxd3 {[%clk 00:03:06]} {[%emt 00:00:01]} Ba6 {[%emt
00:00:01]} 23. Rd1 {[%clk 00:02:57]} {[%emt 00:00:08]} Nd5 {[%clk 00:01:46]}
{[%emt 00:00:30]} 24. Bf2 {[%clk 00:02:36]} {[%emt 00:00:20]} Nc3 {[%clk
00:01:38]} {[%emt 00:00:08]} 25. Rd2 {[%emt 00:00:11]} Ne4 26. Rb2 {[%clk
00:02:22]} {[%emt 00:00:04]} axb6 {[%clk 00:01:33]} {[%emt 00:00:05]} 27. Nxe5
{[%clk 00:02:19]} {[%emt 00:00:02]} Nxf2 {[%clk 00:01:14]} {[%emt 00:00:20]} 28.
Kxf2 {[%clk 00:02:18]} f6 {[%clk 00:01:13]} {[%emt 00:00:01]} 29. Nd7 {[%clk
00:02:14]} {[%emt 00:00:04]} Rd8 {[%clk 00:01:09]} {[%emt 00:00:03]} 30. Nxb6
{[%clk 00:02:13]} {[%emt 00:00:01]} Kf7 {[%clk 00:01:05]} {[%emt 00:00:05]} 31.
a4 {[%clk 00:02:12]} Rd4 {[%clk 00:01:03]} {[%emt 00:00:01]} 32. Ke3 {[%clk
00:02:09]} {[%emt 00:00:03]} Rd3+ {[%clk 00:01:02]} {[%emt 00:00:02]} 33. Kf2
{[%clk 00:02:05]} {[%emt 00:00:03]} Rd4 34. g3 h5 {[%clk 00:01:00]} {[%emt
00:00:01]} 35. h4 {[%clk 00:02:03]} {[%emt 00:00:02]} g5 {[%clk 00:00:59]} 36.
hxg5 {[%clk 00:02:02]} {[%emt 00:00:02]} fxg5 {[%clk 00:00:58]} 37. fxg5 {[%clk
00:02:01]} Kg6 {[%clk 00:00:58]} 38. Ke3 {[%clk 00:01:59]} {[%emt 00:00:02]}
Rd3+ {[%clk 00:00:57]} {[%emt 00:00:01]} 39. Kf4 {[%clk 00:01:59]} Rd4+ {[%clk
00:00:55]} {[%emt 00:00:02]} 40. Ke5 {[%clk 00:01:58]} Rg4 {[%clk 00:00:54]}
{[%emt 00:00:01]} 41. Rb3 {[%clk 00:01:52]} {[%emt 00:00:06]} Kxg5 {[%clk
00:00:46]} {[%emt 00:00:08]} 42. a5 {[%clk 00:01:50]} {[%emt 00:00:02]} Bb7
{[%clk 00:00:40]} {[%emt 00:00:06]} 43. Ke6 {[%clk 00:01:37]} {[%emt 00:00:12]}
Re4+ {[%clk 00:00:36]} {[%emt 00:00:03]} 44. Kd7 {[%clk 00:01:37]} {[%emt
00:00:01]} e5 {[%clk 00:00:33]} {[%emt 00:00:03]} 45. Kc7 {[%clk 00:01:36]} Ba6
{[%clk 00:00:33]} 46. Kd6 {[%clk 00:01:30]} {[%emt 00:00:06]} Re1 {[%clk
00:00:32]} {[%emt 00:00:01]} 47. Ra3 {[%clk 00:01:22]} {[%emt 00:00:08]} e4
{[%clk 00:00:31]} 48. Nd5 {[%clk 00:01:20]} {[%emt 00:00:01]} h4 {[%clk
00:00:28]} {[%emt 00:00:03]} 49. gxh4+ {[%clk 00:01:19]} Kxh4 {[%clk 00:00:28]}
50. Nb4 {[%clk 00:01:14]} {[%emt 00:00:05]} Bc4 {[%clk 00:00:27]} 51. Kc5
{[%clk 00:01:13]} {[%emt 00:00:01]} Bf1 {[%clk 00:00:27]} 52. a6 Bxa6 {[%clk
00:00:26]} 53. Nxa6 {[%clk 00:01:09]} {[%emt 00:00:01]} e3 {[%clk 00:00:25]} 54.
Kd4 {[%clk 00:01:03]} {[%emt 00:00:06]} e2 {[%clk 00:00:24]} {[%emt 00:00:02]}
55. Ke3 {[%clk 00:01:02]} Rb1 {[%clk 00:00:21]} {[%emt 00:00:03]} 56. Kxe2
{[%clk 00:01:01]} {[%emt 00:00:01]} Rb6 {[%clk 00:00:20]} 57. Nc5 {[%clk
00:00:58]} {[%emt 00:00:03]} Rc6 {[%clk 00:00:20]} 58. Ne4 {[%clk 00:00:55]}
{[%emt 00:00:03]} Re6 {[%clk 00:00:20]} 59. Kf3 {[%clk 00:00:53]} {[%emt
00:00:02]} Rb6 {[%clk 00:00:19]} 60. Ra1 {[%clk 00:00:52]} {[%emt 00:00:04]}
Kh5 {[%clk 00:00:20]} {[%emt 00:00:01]} 61. Kf4 {[%clk 00:00:53]} Kg6 {[%clk
00:00:22]} 62. Ra5 {[%clk 00:00:53]} {[%emt 00:00:02]} Kf7 {[%clk 00:00:22]}
{[%emt 00:00:01]} 63. Ke5 {[%clk 00:00:52]} {[%emt 00:00:01]} Kg7 {[%clk
00:00:23]} {[%emt 00:00:02]} 64. Nd6 {[%clk 00:00:52]} {[%emt 00:00:02]} Rb1
{[%clk 00:00:23]} 65. Nf5+ {[%clk 00:00:53]} {[%emt 00:00:02]} Kf7 {[%clk
00:00:25]} 66. Ra7+ {[%clk 00:00:54]} {[%emt 00:00:02]} Kg6 {[%clk 00:00:28]}
67. Rg7+ {[%emt 00:00:03]} Kh5 68. Rg2 {[%clk 00:00:54]} {[%emt 00:00:02]} Rb5+
{[%clk 00:00:29]} {[%emt 00:00:01]} 69. Kf4 Rb4+ 70. Kf3 {[%clk 00:00:55]} Rb3+
{[%clk 00:00:32]} 71. Ne3 {[%clk 00:00:55]} {[%emt 00:00:02]} Rb4 {[%clk
00:00:34]} 72. Rg8 {[%clk 00:00:56]} Rb3 {[%clk 00:00:35]} 73. Ke4 {[%clk
00:00:42]} {[%emt 00:00:16]} Rb4+ 74. Ke5 Rb5+ {[%clk 00:00:38]} 75. Nd5 {[%clk
00:00:45]} Kh4 {[%clk 00:00:39]} 76. Kf4 {[%clk 00:00:45]} {[%emt 00:00:02]}
Rxd5 {[%clk 00:00:36]} {[%emt 00:00:05]} 1/2-1/2

[Event "IV Pullman Blitz 2022"]
[Site "Riga, Latvia"]
[Date "2022.02.20"]
[Round "14.1"]
[White "Batashevs, Arsens"]
[Black "Mustaps, Matiss"]
[Result "1-0"]
[TimeControl "180+2"]
[BlackTitle "FM"]
[WhiteElo "2113"]
[BlackElo "2261"]

1. c4 {[%clk 00:03:03]} {[%emt 00:00:01]} e5 {[%clk 00:03:02]} {[%emt
00:00:02]} 2. g3 {[%clk 00:03:04]} {[%emt 00:00:01]} Nf6 {[%clk 00:03:03]} 3.
Bg2 {[%clk 00:03:05]} d5 {[%clk 00:03:05]} 4. cxd5 Nxd5 {[%clk 00:03:06]} 5.
Nc3 {[%clk 00:03:08]} Nb6 {[%clk 00:03:08]} 6. d3 {[%clk 00:03:00]} {[%emt
00:00:10]} Nc6 {[%clk 00:03:09]} 7. Bxc6+ {[%clk 00:02:59]} {[%emt 00:00:03]}
bxc6 {[%clk 00:03:07]} {[%emt 00:00:03]} 8. Nf3 {[%clk 00:03:01]} Bd6 {[%clk
00:03:01]} {[%emt 00:00:09]} 9. Qc2 {[%clk 00:02:52]} {[%emt 00:00:11]} O-O
{[%clk 00:03:00]} {[%emt 00:00:03]} 10. Bd2 {[%clk 00:02:40]} {[%emt 00:00:14]}
Nd5 {[%clk 00:02:51]} {[%emt 00:00:11]} 11. Nxd5 {[%clk 00:02:27]} {[%emt
00:00:15]} cxd5 {[%clk 00:02:51]} {[%emt 00:00:02]} 12. Qc6 {[%clk 00:02:28]}
Rb8 {[%clk 00:02:29]} {[%emt 00:00:25]} 13. Qxd5 {[%clk 00:02:25]} {[%emt
00:00:05]} Rxb2 {[%clk 00:02:30]} 14. Qc4 {[%clk 00:02:04]} {[%emt 00:00:23]}
Bb7 {[%clk 00:02:27]} {[%emt 00:00:05]} 15. Qc3 {[%clk 00:01:55]} {[%emt
00:00:10]} Rb6 {[%clk 00:01:58]} {[%emt 00:00:31]} 16. O-O {[%clk 00:01:41]}
{[%emt 00:00:16]} e4 {[%clk 00:01:43]} {[%emt 00:00:17]} 17. dxe4 {[%clk
00:01:36]} {[%emt 00:00:08]} Bxe4 {[%clk 00:01:45]} 18. Be3 {[%clk 00:01:27]}
{[%emt 00:00:11]} Ra6 {[%clk 00:01:26]} {[%emt 00:00:21]} 19. Qc4 {[%clk
00:01:23]} {[%emt 00:00:06]} Bb7 {[%clk 00:01:27]} 20. Rab1 {[%clk 00:01:22]}
{[%emt 00:00:04]} Qc8 {[%clk 00:01:26]} {[%emt 00:00:02]} 21. Rfd1 {[%clk
00:01:14]} {[%emt 00:00:10]} Rc6 {[%clk 00:01:19]} {[%emt 00:00:10]} 22. Qb5
{[%clk 00:01:06]} {[%emt 00:00:09]} Ba8 {[%clk 00:01:14]} {[%emt 00:00:08]} 23.
Bxa7 {[%clk 00:00:53]} {[%emt 00:00:16]} Ra6 {[%clk 00:01:15]} 24. Bd4 {[%clk
00:00:51]} {[%emt 00:00:03]} Rxa2 {[%clk 00:01:15]} {[%emt 00:00:03]} 25. Bxg7
{[%clk 00:00:41]} {[%emt 00:00:11]} Kxg7 {[%clk 00:00:42]} {[%emt 00:00:34]} 26.
Qg5+ {[%clk 00:00:42]} {[%emt 00:00:01]} Kh8 {[%clk 00:00:43]} 27. Qf6+ {[%clk
00:00:36]} {[%emt 00:00:09]} Kg8 {[%clk 00:00:45]} 28. Rb5 {[%clk 00:00:13]}
{[%emt 00:00:25]} h6 {[%clk 00:00:42]} {[%emt 00:00:05]} 29. Qxh6 {[%clk
00:00:11]} {[%emt 00:00:04]} c5 {[%clk 00:00:15]} {[%emt 00:00:29]} 30. Rxd6
{[%clk 00:00:07]} {[%emt 00:00:06]} Ra1+ {[%clk 00:00:11]} {[%emt 00:00:06]} 31.
Kg2 {[%clk 00:00:08]} Qf5 {[%clk 00:00:09]} {[%emt 00:00:05]} 32. Rf6 {[%clk
00:00:07]} {[%emt 00:00:03]} Qh7 {[%clk 00:00:09]} {[%emt 00:00:01]} 33. Qg5+
{[%clk 00:00:08]} {[%emt 00:00:01]} Qg7 {[%clk 00:00:11]} 34. Rxc5 {[%clk
00:00:07]} {[%emt 00:00:03]} Re8 {[%clk 00:00:10]} {[%emt 00:00:03]} 35. Qf4
{[%clk 00:00:06]} {[%emt 00:00:01]} Be4 {[%clk 00:00:06]} {[%emt 00:00:06]} 36.
Rg5 {[%clk 00:00:05]} {[%emt 00:00:03]} Bg6 {[%clk 00:00:08]} 37. h4 {[%clk
00:00:05]} {[%emt 00:00:02]} Rxe2 {[%clk 00:00:08]} {[%emt 00:00:02]} 38. h5
{[%clk 00:00:05]} {[%emt 00:00:02]} Raa2 {[%clk 00:00:09]} 39. hxg6 {[%clk
00:00:03]} {[%emt 00:00:04]} Rxf2+ {[%clk 00:00:10]} {[%emt 00:00:01]} 40. Kh3
{[%clk 00:00:04]} Qh6+ {[%clk 00:00:04]} {[%emt 00:00:09]} 41. Kg4 {[%clk
00:00:05]} {[%emt 00:00:01]} Kh8 {[%clk 00:00:03]} {[%emt 00:00:02]} 42. g7+
{[%clk 00:00:06]} {[%emt 00:00:01]} Kg8 {[%clk 00:00:04]} 43. Qb8+ {[%clk
00:00:07]} {[%emt 00:00:01]} Kh7 {[%clk 00:00:06]} 44. Qh8# {[%clk 00:00:07]}
{[%emt 00:00:02]} 1-0

[Event "IV Pullman Blitz 2022"]
[Site "Riga, Latvia"]
[Date "2022.02.20"]
[Round "15.1"]
[White "Mustaps, Matiss"]
[Black "Batashevs, Arsens"]
[Result "1-0"]
[TimeControl "180+2"]
[WhiteTitle "FM"]
[WhiteElo "2261"]
[BlackElo "2113"]

1. e4 {[%clk 00:03:04]} {[%emt 00:00:27]} g6 {[%clk 00:03:04]} 2. d4 {[%clk
00:02:58]} {[%emt 00:00:07]} Bg7 {[%clk 00:03:05]} 3. Nc3 {[%clk 00:03:00]} c5
{[%clk 00:03:07]} 4. dxc5 Bxc3+ 5. bxc3 {[%clk 00:03:03]} Qa5 {[%clk 00:03:09]}
6. Ne2 {[%clk 00:02:50]} {[%emt 00:00:14]} Nf6 {[%clk 00:03:06]} {[%emt
00:00:05]} 7. e5 {[%clk 00:02:47]} {[%emt 00:00:05]} Ne4 {[%clk 00:03:04]}
{[%emt 00:00:04]} 8. Qd4 {[%clk 00:02:47]} {[%emt 00:00:02]} Nxc5 {[%clk
00:03:03]} {[%emt 00:00:04]} 9. Bd2 {[%clk 00:02:30]} {[%emt 00:00:19]} Nc6
{[%clk 00:02:55]} {[%emt 00:00:10]} 10. Qe3 {[%clk 00:02:31]} Nxe5 {[%clk
00:02:26]} {[%emt 00:00:31]} 11. c4 {[%clk 00:02:21]} {[%emt 00:00:12]} Nxc4
{[%clk 00:01:51]} {[%emt 00:00:36]} 12. Bxa5 {[%clk 00:02:19]} {[%emt
00:00:04]} Nxe3 13. fxe3 {[%clk 00:02:20]} b6 {[%clk 00:01:52]} {[%emt
00:00:02]} 14. Bc3 {[%clk 00:02:21]} f6 {[%clk 00:01:53]} 15. Bd4 {[%clk
00:02:12]} {[%emt 00:00:11]} Ne6 {[%clk 00:01:47]} {[%emt 00:00:08]} 16. Nf4
{[%clk 00:02:13]} Nc7 {[%clk 00:01:43]} {[%emt 00:00:07]} 17. Bb2 {[%clk
00:02:08]} {[%emt 00:00:07]} Bb7 {[%clk 00:01:44]} {[%emt 00:00:01]} 18. O-O-O
{[%clk 00:02:08]} {[%emt 00:00:02]} e5 {[%clk 00:01:42]} {[%emt 00:00:05]} 19.
Nd3 {[%clk 00:02:06]} {[%emt 00:00:04]} d5 {[%clk 00:01:43]} 20. Nxe5 {[%clk
00:02:06]} {[%emt 00:00:01]} fxe5 21. Bxe5 {[%clk 00:02:08]} Kd7 {[%clk
00:01:42]} 22. Bxh8 {[%clk 00:02:08]} Rxh8 {[%clk 00:01:43]} 23. Bd3 {[%clk
00:02:09]} {[%emt 00:00:01]} Re8 {[%clk 00:01:08]} {[%emt 00:00:36]} 24. Kd2
{[%clk 00:02:08]} {[%emt 00:00:03]} d4 {[%clk 00:01:07]} {[%emt 00:00:03]} 25.
exd4 {[%clk 00:02:05]} {[%emt 00:00:04]} Bxg2 {[%clk 00:01:08]} {[%emt
00:00:01]} 26. Rhg1 {[%clk 00:02:05]} {[%emt 00:00:02]} Bd5 {[%clk 00:00:23]}
{[%emt 00:00:47]} 27. Rde1 {[%clk 00:02:06]} {[%emt 00:00:01]} Rc8 {[%clk
00:00:06]} {[%emt 00:00:19]} 28. a3 {[%clk 00:02:06]} {[%emt 00:00:02]} b5
{[%clk 00:00:07]} {[%emt 00:00:02]} 29. Re5 {[%clk 00:02:05]} {[%emt 00:00:03]}
a6 {[%clk 00:00:08]} {[%emt 00:00:01]} 30. Rge1 {[%clk 00:02:06]} Be6 {[%clk
00:00:04]} {[%emt 00:00:05]} 31. h4 {[%clk 00:01:58]} {[%emt 00:00:10]} Rf8
{[%clk 00:00:04]} {[%emt 00:00:02]} 32. h5 {[%clk 00:01:58]} {[%emt 00:00:02]}
gxh5 33. Rxh5 {[%clk 00:01:59]} Rf2+ {[%clk 00:00:04]} {[%emt 00:00:01]} 34.
Re2 {[%clk 00:02:00]} Rf4 {[%emt 00:00:04]} 1-0

[Event "IV Pullman Blitz 2022"]
[Site "Riga, Latvia"]
[Date "2022.02.20"]
[Round "16.1"]
[White "Mustaps, Matiss"]
[Black "Batashevs, Arsens"]
[Result "1-0"]
[TimeControl "180+2"]
[WhiteTitle "FM"]
[WhiteElo "2261"]
[BlackElo "2113"]

1. e4 {[%clk 00:04:59]} {[%emt 00:00:45]} g6 2. d4 Bg7 {[%clk 00:03:59]} 3. Nc3
c5 4. dxc5 {[%clk 00:04:58]} Bxc3+ {[%clk 00:03:59]} 5. bxc3 {[%clk 00:04:57]}
Qa5 {[%clk 00:03:58]} 6. Ne2 {[%clk 00:04:43]} {[%emt 00:00:14]} Nf6 {[%clk
00:03:56]} {[%emt 00:00:02]} 7. e5 {[%clk 00:04:43]} Ne4 {[%clk 00:03:56]} 8.
Qd4 {[%clk 00:04:42]} Nxc5 {[%clk 00:03:54]} {[%emt 00:00:03]} 9. Bd2 {[%clk
00:04:42]} Nc6 {[%clk 00:03:46]} {[%emt 00:00:08]} 10. Qe3 {[%clk 00:04:41]}
Nxe5 {[%clk 00:03:02]} {[%emt 00:00:45]} 11. c4 Qc7 12. Nc3 {[%clk 00:04:31]}
{[%emt 00:00:09]} d6 {[%clk 00:02:53]} {[%emt 00:00:08]} 13. Nd5 {[%clk
00:04:30]} {[%emt 00:00:01]} Qd7 {[%clk 00:02:20]} {[%emt 00:00:33]} 14. Bc3
{[%clk 00:04:29]} O-O {[%clk 00:01:49]} {[%emt 00:00:31]} 15. Bxe5 {[%clk
00:04:29]} {[%emt 00:00:01]} dxe5 {[%clk 00:01:46]} {[%emt 00:00:04]} 16. Qxc5
{[%clk 00:04:28]} b6 {[%clk 00:01:43]} {[%emt 00:00:03]} 17. Qxe7 {[%clk
00:04:25]} {[%emt 00:00:02]} Qa4 {[%clk 00:01:31]} {[%emt 00:00:12]} 18. Qxe5
{[%clk 00:03:32]} {[%emt 00:00:53]} Re8 {[%clk 00:01:23]} {[%emt 00:00:08]} 1-0